fUSD/lending_fUSD_20260611
["ID","MTS","AMOUNT","RATE_DAILY","PERIOD"]
[424763716,1781135432000,-166.66,0.00011085,2]
[424763724,1781135432000,-150.0,0.00011485,2]
[424763729,1781135432000,-829.45774875,0.00011687,2]
[424763725,1781135432000,-300.59,0.00011511,2]
[424763736,1781135432000,-28.93867272,0.00012249,2]
[424763730,1781135432000,-1.34986423,0.00011742,2]
[424763732,1781135432000,-166.66,0.00011785,2]
[424763734,1781135432000,-166.66,0.00012018,2]
[424763733,1781135432000,-1327.88,0.00011802,2]
[424763735,1781135432000,-195.06132728,0.00012249,2]
[424763738,1781135432000,-30.66631009,0.00012249,2]
[424763737,1781135432000,-226.0,0.00012249,2]
[424763739,1781135432000,-197.33368991,0.00012249,2]
[424763741,1781135432000,-205.22227665,0.00012251,2]
[424763731,1781135432000,-250.62339777,0.00011742,2]
[424763740,1781135432000,-225.0,0.00012251,2]
[424763746,1781135437000,-222.0,0.00012311,2]
[424763742,1781135437000,-21.77772335,0.00012251,2]
[424763743,1781135437000,-166.66,0.00012252,2]
[424763747,1781135437000,-222.0,0.00012311,2]
[424763744,1781135437000,-229.0,0.00012252,2]
[424763745,1781135437000,-224.0,0.00012252,2]
[424763749,1781135437000,-228.0,0.00012311,2]
[424763748,1781135437000,-223.0,0.00012311,2]
[424763750,1781135437000,-222.0,0.00012311,2]
[424763773,1781135438000,-229.0,0.00012373,2]
[424763771,1781135438000,-224.0,0.00012373,2]
[424763777,1781135438000,-226.0,0.00012373,2]
[424763774,1781135438000,-224.0,0.00012373,2]
[424763775,1781135438000,-223.0,0.00012373,2]
[424763776,1781135438000,-221.0,0.00012373,2]
[424763781,1781135438000,-222.0,0.00012373,2]
[424763780,1781135438000,-224.0,0.00012373,2]
[424763787,1781135438000,-226.0,0.00012373,2]
[424763783,1781135438000,-229.0,0.00012373,2]
[424763784,1781135438000,-225.0,0.00012373,2]
[424763785,1781135438000,-226.0,0.00012373,2]
[424763786,1781135438000,-222.0,0.00012373,2]
[424763793,1781135438000,-229.0,0.00012373,2]
[424763794,1781135438000,-228.0,0.00012373,2]
[424763782,1781135438000,-228.0,0.00012373,2]
[424763797,1781135438000,-223.0,0.00012373,2]
[424763790,1781135438000,-225.0,0.00012373,2]
[424763805,1781135438000,-226.0,0.00012373,2]
[424763788,1781135438000,-228.0,0.00012373,2]
[424763778,1781135438000,-226.0,0.00012373,2]
[424763772,1781135438000,-229.0,0.00012373,2]
[424763759,1781135438000,-226.0,0.00012311,2]
[424763798,1781135438000,-223.0,0.00012373,2]
[424763755,1781135438000,-222.0,0.00012311,2]
[424763753,1781135438000,-227.0,0.00012311,2]
[424763752,1781135438000,-223.0,0.00012311,2]
[424763756,1781135438000,-225.0,0.00012311,2]
[424763751,1781135438000,-223.0,0.00012311,2]
[424763754,1781135438000,-228.0,0.00012311,2]
[424763762,1781135438000,-223.0,0.00012314,2]
[424763769,1781135438000,-227.0,0.00012373,2]
[424763758,1781135438000,-225.0,0.00012311,2]
[424763764,1781135438000,-225.0,0.00012373,2]
[424763767,1781135438000,-227.0,0.00012373,2]
[424763761,1781135438000,-226.0,0.00012314,2]
[424763757,1781135438000,-226.0,0.00012311,2]
[424763766,1781135438000,-221.0,0.00012373,2]
[424763768,1781135438000,-221.0,0.00012373,2]
[424763760,1781135438000,-226.0,0.00012311,2]
[424763763,1781135438000,-191.46,0.00012329,2]
[424763765,1781135438000,-225.0,0.00012373,2]
[424763779,1781135438000,-224.0,0.00012373,2]
[424763817,1781135438000,-224.0,0.00012436,2]
[424763803,1781135438000,-228.0,0.00012373,2]
[424763801,1781135438000,-225.0,0.00012373,2]
[424763864,1781135438000,-500.0,0.00012729,2]
[424763862,1781135438000,-500.0,0.00012729,2]
[424763860,1781135438000,-500.0,0.00012729,2]
[424763868,1781135438000,-500.0,0.00012729,2]
[424763866,1781135438000,-500.0,0.00012729,2]
[424763874,1781135438000,-500.0,0.00012729,2]
[424763881,1781135438000,-450.0,0.00012729,2]
[424763875,1781135438000,-500.0,0.00012729,2]
[424763878,1781135438000,-500.0,0.00012729,2]
[424763873,1781135438000,-500.0,0.00012729,2]
[424763876,1781135438000,-500.0,0.00012729,2]
[424763880,1781135438000,-500.0,0.00012729,2]
[424763879,1781135438000,-500.0,0.00012729,2]
[424763877,1781135438000,-500.0,0.00012729,2]
[424763870,1781135438000,-500.0,0.00012729,2]
[424763884,1781135438000,-500.0,0.00012729,2]
[424763883,1781135438000,-500.0,0.00012729,2]
[424763886,1781135438000,-88718.1928977,0.0001273,2]
[424763885,1781135438000,-500.0,0.00012729,2]
[424763858,1781135438000,-500.0,0.00012729,2]
[424763847,1781135438000,-500.0,0.00012729,2]
[424763882,1781135438000,-500.0,0.00012729,2]
[424763851,1781135438000,-500.0,0.00012729,2]
[424763807,1781135438000,-224.0,0.00012373,2]
[424763815,1781135438000,-226.0,0.00012376,2]
[424763820,1781135438000,-228.0,0.00012436,2]
[424763813,1781135438000,-229.0,0.00012376,2]
[424763811,1781135438000,-222.0,0.00012374,2]
[424763834,1781135438000,-160.3,0.00012702,2]
[424763836,1781135438000,-2000.0,0.00012702,2]
[424763840,1781135438000,-500.0,0.00012729,2]
[424763809,1781135438000,-229.0,0.00012374,2]
[424763849,1781135438000,-500.0,0.00012729,2]
[424763843,1781135438000,-176.86590582,0.00012729,2]
[424763838,1781135438000,-519.08504572,0.00012729,2]
[424763845,1781135438000,-164.95348911,0.00012729,2]
[424763830,1781135438000,-804.59246868,0.00012631,2]
[424763822,1781135438000,-226.0,0.00012436,2]
[424763826,1781135438000,-222.0,0.00012436,2]
[424763828,1781135438000,-222.0,0.00012436,2]
[424763824,1781135438000,-224.0,0.00012436,2]
[424763856,1781135438000,-500.0,0.00012729,2]
[424763854,1781135438000,-500.0,0.00012729,2]
[424763832,1781135438000,-3371.11246962,0.00012631,2]
[424763891,1781135440000,-678.76931747,0.0001273,2]
[424763892,1781135440000,-9827.83918639,0.0001273,2]
[424763893,1781135440000,-1025.49280924,0.0001273,2]
[424763890,1781135440000,-6021.21035833,0.0001273,2]
[424763896,1781135442000,-3676.16886852,0.0001273,2]
[424763895,1781135442000,-1607.59263891,0.0001273,2]
[424763894,1781135442000,-500.64937916,0.0001273,2]
[424763897,1781135443000,-1004.04692897,0.0001273,2]
[424763919,1781135445000,-2956.55,0.0001273,2]
[424763920,1781135446000,-1403.8035403,0.0001273,2]
[424763923,1781136398000,-316.20167288,8e-05,2]
[424763924,1781136398000,-150.00280004,8.8e-05,2]
[424763925,1781136400000,150.9382778,8.16e-05,7]
[424763926,1781136401000,226.4074167,8.64e-05,7]
[424763939,1781136631000,-152.17116641,0.00010799,2]
[424763938,1781136631000,-500.0,0.00010795,2]
[424763936,1781136631000,-450.0,0.00010763,2]
[424763937,1781136631000,-720.09444773,0.00010763,2]
[424763935,1781136631000,-509.98555227,0.00010763,2]
[424763930,1781136631000,-160.0,9.65e-05,2]
[424763933,1781136631000,-151.0,0.00010285,2]
[424763932,1781136631000,-461.89574631,0.00010164,2]
[424763931,1781136631000,-151.0,0.0001,2]
[424763929,1781136631000,-291.0,9.636e-05,2]
[424763940,1781136631000,-166.66,0.00010959,2]
[424763934,1781136631000,-565.85874462,0.00010438,2]
[424763941,1781136631000,-279.65856164,0.00010964,2]
[424763950,1781136631000,-163.65,0.00011361,2]
[424763944,1781136631000,-182.82050694,0.00011031,2]
[424763942,1781136631000,-2246.27201538,0.00010964,2]
[424763955,1781136631000,-166.66,0.00011507,2]
[424763953,1781136631000,-202.15118024,0.00011466,2]
[424763952,1781136631000,-166.66,0.00011397,2]
[424763951,1781136631000,-872.26,0.00011389,2]
[424763954,1781136631000,-500.0,0.00011507,2]
[424763946,1781136631000,-1645.38,0.00011131,2]
[424763948,1781136631000,-3254.22,0.00011238,2]
[424763947,1781136631000,-166.66,0.00011178,2]
[424763943,1781136631000,-728.28942298,0.00010964,2]
[424763945,1781136631000,-166.66,0.00011068,2]
[424763949,1781136631000,-166.66,0.00011288,2]
[424763992,1781136632000,-2957.9534,0.00012531,2]
[424763981,1781136632000,-31591.22611532,0.00012457,2]
[424763977,1781136632000,-2500.0,0.0001244,2]
[424763994,1781136632000,-500.0,0.00012539,2]
[424763995,1781136632000,-500.0,0.00012539,2]
[424763996,1781136632000,-500.0,0.00012539,2]
[424764001,1781136632000,-250.0,0.00012539,2]
[424763997,1781136632000,-500.0,0.00012539,2]
[424764000,1781136632000,-500.0,0.00012539,2]
[424763998,1781136632000,-500.0,0.00012539,2]
[424764002,1781136632000,-2000.0,0.00012539,2]
[424763979,1781136632000,-728.96288957,0.00012456,2]
[424764003,1781136632000,-500.0,0.00012539,2]
[424764004,1781136632000,-500.0,0.00012539,2]
[424763999,1781136632000,-500.0,0.00012539,2]
[424763989,1781136632000,-172.27842221,0.0001253,2]
[424763968,1781136632000,-4135.31,0.00012087,2]
[424763975,1781136632000,-339.83860225,0.00012396,2]
[424764005,1781136632000,-500.0,0.00012539,2]
[424763956,1781136632000,-3254.22,0.00011512,2]
[424763958,1781136632000,-150.0,0.00011524,2]
[424763961,1781136632000,-3254.22,0.00011786,2]
[424763962,1781136632000,-600.71920306,0.00011929,2]
[424763959,1781136632000,-437.43120445,0.00011675,2]
[424763957,1781136632000,-1050.52,0.00011524,2]
[424763964,1781136632000,-540.65072543,0.0001193,2]
[424763966,1781136632000,-3254.22,0.00012061,2]
[424763965,1781136632000,-416.84388548,0.0001193,2]
[424763970,1781136632000,-188.67284725,0.00012168,7]
[424763971,1781136632000,-172.8,0.00012317,2]
[424763973,1781136632000,-191.45,0.00012329,2]
[424763983,1781136632000,-4021.32475056,0.00012484,2]
[424763987,1781136632000,-1966.8872473,0.00012529,2]
[424763985,1781136632000,-531.4166715,0.00012484,2]
[424764007,1781136632000,-500.0,0.00012539,2]
[424763960,1781136632000,-165.85,0.0001168,2]
[424764008,1781136632000,-500.0,0.00012539,2]
[424764027,1781136632000,-500.0,0.00012539,2]
[424764030,1781136632000,-500.0,0.00012539,2]
[424764032,1781136632000,-500.0,0.00012539,2]
[424764031,1781136632000,-500.0,0.00012539,2]
[424764033,1781136632000,-500.0,0.00012539,2]
[424764034,1781136632000,-500.0,0.00012539,2]
[424764036,1781136632000,-500.0,0.00012539,2]
[424764039,1781136632000,-70475.70838279,0.0001254,2]
[424764043,1781136632000,-356.82273408,0.0001254,2]
[424764037,1781136632000,-200.0,0.00012539,2]
[424764038,1781136632000,-1230.244,0.0001254,2]
[424764040,1781136632000,-99899.80274359,0.0001254,2]
[424764042,1781136632000,-10645.50617898,0.0001254,2]
[424764041,1781136632000,-1254.41808677,0.0001254,2]
[424764006,1781136632000,-500.0,0.00012539,2]
[424764029,1781136632000,-500.0,0.00012539,2]
[424764026,1781136632000,-500.0,0.00012539,2]
[424764035,1781136632000,-500.0,0.00012539,2]
[424764024,1781136632000,-500.0,0.00012539,2]
[424764010,1781136632000,-500.0,0.00012539,2]
[424764025,1781136632000,-500.0,0.00012539,2]
[424764009,1781136632000,-500.0,0.00012539,2]
[424764012,1781136632000,-500.0,0.00012539,2]
[424764011,1781136632000,-500.0,0.00012539,2]
[424764013,1781136632000,-500.0,0.00012539,2]
[424764018,1781136632000,-500.0,0.00012539,2]
[424764017,1781136632000,-500.0,0.00012539,2]
[424764014,1781136632000,-500.0,0.00012539,2]
[424764015,1781136632000,-500.0,0.00012539,2]
[424764019,1781136632000,-500.0,0.00012539,2]
[424764021,1781136632000,-500.0,0.00012539,2]
[424764022,1781136632000,-500.0,0.00012539,2]
[424764020,1781136632000,-500.0,0.00012539,2]
[424764016,1781136632000,-500.0,0.00012539,2]
[424764023,1781136632000,-463.75047524,0.00012539,2]
[424764028,1781136632000,-500.0,0.00012539,2]
[424764072,1781136638000,-315.27195629,0.00012788,2]
[424764083,1781136638000,-902.94,0.0001291,2]
[424764080,1781136638000,-215.92376884,0.00012883,2]
[424764082,1781136638000,-600.0,0.000129,4]
[424764073,1781136638000,-800.0,0.000128,4]
[424764076,1781136638000,-580.0,0.0001283,2]
[424764074,1781136638000,-400.0,0.000128,4]
[424764075,1781136638000,-872.26,0.00012812,2]
[424764081,1781136638000,-1200.0,0.000129,4]
[424764077,1781136638000,-200.0,0.00012857,2]
[424764094,1781136638000,-170.119416,0.00013006,2]
[424764079,1781136638000,-200.0,0.00012857,2]
[424764084,1781136638000,-339.83860225,0.00012929,2]
[424764085,1781136638000,-315.27195629,0.00012951,2]
[424764086,1781136638000,-1050.52,0.00012964,2]
[424764089,1781136638000,-200.0,0.00012986,2]
[424764088,1781136638000,-200.0,0.00012986,2]
[424764092,1781136638000,-5688.34629317,0.00013,2]
[424764091,1781136638000,-31591.22611525,0.00013,2]
[424764070,1781136638000,-4021.32475051,0.00012752,2]
[424764078,1781136638000,-200.0,0.00012857,2]
[424764067,1781136638000,-344.8962505,0.0001273,2]
[424764051,1781136638000,-500.0,0.00012639,2]
[424764068,1781136638000,-200.0,0.0001273,2]
[424764048,1781136638000,-1292751.11516834,0.0001254,2]
[424764049,1781136638000,-255.0,0.00012584,2]
[424764047,1781136638000,-24616.62670545,0.0001254,2]
[424764050,1781136638000,-172.8,0.00012629,2]
[424764052,1781136638000,-261654.5702726,0.0001264,2]
[424764090,1781136638000,-200.0,0.00012986,2]
[424764053,1781136638000,-31970.3878652,0.0001264,2]
[424764055,1781136638000,-25173.4374304,0.0001264,2]
[424764054,1781136638000,-7562.3120428,0.0001264,2]
[424764057,1781136638000,-400.0,0.000127,4]
[424764059,1781136638000,-151.0,0.00012727,2]
[424764056,1781136638000,-165.85,0.00012644,2]
[424764061,1781136638000,-200.0,0.0001273,2]
[424764058,1781136638000,-200.0,0.000127,4]
[424764060,1781136638000,-31591.22611525,0.00012728,2]
[424764062,1781136638000,-200.0,0.0001273,2]
[424764064,1781136638000,-152.0,0.0001273,2]
[424764063,1781136638000,-200.0,0.0001273,2]
[424764069,1781136638000,-151.0,0.00012745,2]
[424764065,1781136638000,-337.40878624,0.0001273,2]
[424764066,1781136638000,-1000.0,0.0001273,2]
[424764071,1781136638000,-500.0,0.00012767,2]
[424764093,1781136638000,-444.5910298,0.00013,5]
[424764087,1781136638000,-343.93304323,0.00012969,2]
[424764097,1781136638000,-5425.48779302,0.0001305,2]
[424764146,1781136638000,-311.25655551,0.00013383,2]
[424764144,1781136638000,-311.25655545,0.00013362,2]
[424764148,1781136638000,-306.48136044,0.00013394,2]
[424764156,1781136638000,-334.09054218,0.00013465,2]
[424764159,1781136638000,-150.0,0.00013488,2]
[424764158,1781136638000,-150.0,0.00013488,2]
[424764155,1781136638000,-339.83860225,0.00013461,2]
[424764160,1781136638000,-150.0,0.00013488,2]
[424764161,1781136638000,-150.0,0.00013488,2]
[424764162,1781136638000,-150.0,0.00013488,2]
[424764163,1781136638000,-368.5089084,0.000135,2]
[424764164,1781136638000,-200.0,0.000135,3]
[424764166,1781136638000,-31591.22611525,0.00013543,2]
[424764165,1781136638000,-315.27195629,0.00013507,2]
[424764167,1781136638000,-343.93304323,0.00013552,2]
[424764172,1781136638000,-150.0,0.00013613,2]
[424764168,1781136638000,-4021.32475051,0.00013558,2]
[424764171,1781136638000,-165.85,0.00013608,2]
[424764169,1781136638000,-315.27195629,0.00013575,2]
[424764170,1781136638000,-339.83860225,0.00013587,2]
[424764095,1781136638000,-214.715923,0.00013006,2]
[424764142,1781136638000,-315.27195629,0.00013358,2]
[424764154,1781136638000,-315.27195629,0.00013435,2]
[424764157,1781136638000,-334.09054219,0.00013476,2]
[424764151,1781136638000,-343.93304323,0.00013396,2]
[424764153,1781136638000,-306.48136044,0.00013428,2]
[424764115,1781136638000,-343.93304323,0.00013211,2]
[424764102,1781136638000,-200.0,0.00013116,2]
[424764109,1781136638000,-311.25655545,0.00013154,2]
[424764096,1781136638000,-4021.32475051,0.00013021,2]
[424764098,1781136638000,-163.788673,0.00013071,2]
[424764100,1781136638000,-315.27195629,0.00013076,2]
[424764104,1781136638000,-200.0,0.00013116,2]
[424764113,1781136638000,-311.25655545,0.00013192,2]
[424764111,1781136638000,-315.27195629,0.00013181,2]
[424764120,1781136638000,-334.09054218,0.0001323,2]
[424764107,1781136638000,-339.83860225,0.00013149,2]
[424764140,1781136638000,-311.25655545,0.0001333,2]
[424764126,1781136638000,-311.25655545,0.00013265,2]
[424764124,1781136638000,-311.25655545,0.00013263,2]
[424764118,1781136638000,-311.25655545,0.00013228,2]
[424764133,1781136638000,-4021.32475051,0.00013289,2]
[424764128,1781136638000,-31591.22611525,0.00013271,2]
[424764130,1781136638000,-315.27195629,0.00013274,2]
[424764135,1781136638000,-311.25655545,0.00013297,2]
[424764137,1781136638000,-339.83860225,0.00013319,2]
[424764122,1781136638000,-500.0,0.0001325,2]
[424764209,1781136639000,-500.0,0.00013698,2]
[424764205,1781136639000,-500.0,0.00013698,2]
[424764206,1781136639000,-500.0,0.00013698,2]
[424764204,1781136639000,-500.0,0.00013698,2]
[424764199,1781136639000,-500.0,0.00013698,2]
[424764222,1781136639000,-500.0,0.00013698,2]
[424764196,1781136639000,-500.0,0.00013698,2]
[424764211,1781136639000,-500.0,0.00013698,2]
[424764201,1781136639000,-500.0,0.00013698,2]
[424764202,1781136639000,-500.0,0.00013698,2]
[424764214,1781136639000,-476.97476305,0.00013698,2]
[424764215,1781136639000,-500.0,0.00013698,2]
[424764212,1781136639000,-500.0,0.00013698,2]
[424764210,1781136639000,-500.0,0.00013698,2]
[424764208,1781136639000,-500.0,0.00013698,2]
[424764207,1781136639000,-500.0,0.00013698,2]
[424764217,1781136639000,-500.0,0.00013698,2]
[424764219,1781136639000,-500.0,0.00013698,2]
[424764218,1781136639000,-179.84270164,0.00013698,2]
[424764220,1781136639000,-500.0,0.00013698,2]
[424764216,1781136639000,-500.0,0.00013698,2]
[424764223,1781136639000,-500.0,0.00013698,2]
[424764213,1781136639000,-590.47777373,0.00013698,2]
[424764198,1781136639000,-500.0,0.00013698,2]
[424764174,1781136639000,-311.25655545,0.00013646,2]
[424764195,1781136639000,-500.0,0.00013698,2]
[424764173,1781136639000,-315.27195629,0.00013639,2]
[424764175,1781136639000,-311.25655545,0.00013661,2]
[424764177,1781136639000,-531.41667149,0.00013692,2]
[424764178,1781136639000,-500.0,0.00013698,2]
[424764179,1781136639000,-525.49280924,0.00013698,2]
[424764183,1781136639000,-502.29186961,0.00013698,2]
[424764180,1781136639000,-574.57860626,0.00013698,2]
[424764181,1781136639000,-500.0,0.00013698,2]
[424764176,1781136639000,-343.93304323,0.0001369,2]
[424764182,1781136639000,-500.0,0.00013698,2]
[424764197,1781136639000,-500.0,0.00013698,2]
[424764184,1781136639000,-500.0,0.00013698,2]
[424764186,1781136639000,-360.74444668,0.00013698,2]
[424764187,1781136639000,-500.0,0.00013698,2]
[424764189,1781136639000,-500.0,0.00013698,2]
[424764191,1781136639000,-500.0,0.00013698,2]
[424764188,1781136639000,-500.0,0.00013698,2]
[424764193,1781136639000,-500.0,0.00013698,2]
[424764192,1781136639000,-500.0,0.00013698,2]
[424764190,1781136639000,-500.0,0.00013698,2]
[424764194,1781136639000,-500.0,0.00013698,2]
[424764200,1781136639000,-500.0,0.00013698,2]
[424764185,1781136639000,-500.0,0.00013698,2]
[424764224,1781136639000,-500.0,0.00013698,2]
[424764203,1781136639000,-500.0,0.00013698,2]
[424764225,1781136639000,-500.0,0.00013698,2]
[424764253,1781136639000,-500.0,0.00013698,2]
[424764254,1781136639000,-500.0,0.00013698,2]
[424764255,1781136639000,-500.0,0.00013698,2]
[424764257,1781136639000,-500.0,0.00013698,2]
[424764256,1781136639000,-500.0,0.00013698,2]
[424764259,1781136639000,-500.0,0.00013698,2]
[424764258,1781136639000,-500.0,0.00013698,2]
[424764261,1781136639000,-500.0,0.00013698,2]
[424764264,1781136639000,-500.0,0.00013698,2]
[424764265,1781136639000,-500.0,0.00013698,2]
[424764263,1781136639000,-500.0,0.00013698,2]
[424764266,1781136639000,-500.0,0.00013698,2]
[424764260,1781136639000,-500.0,0.00013698,2]
[424764262,1781136639000,-500.0,0.00013698,2]
[424764267,1781136639000,-500.0,0.00013698,2]
[424764268,1781136639000,-192.93,0.00013698,2]
[424764270,1781136639000,-500.0,0.00013698,2]
[424764271,1781136639000,-500.0,0.00013698,2]
[424764272,1781136639000,-500.0,0.00013698,2]
[424764269,1781136639000,-500.0,0.00013698,2]
[424764273,1781136639000,-500.0,0.00013698,2]
[424764274,1781136639000,-500.0,0.00013698,2]
[424764275,1781136639000,-500.0,0.00013698,2]
[424764251,1781136639000,-500.0,0.00013698,2]
[424764252,1781136639000,-500.0,0.00013698,2]
[424764221,1781136639000,-500.0,0.00013698,2]
[424764249,1781136639000,-500.0,0.00013698,2]
[424764226,1781136639000,-500.0,0.00013698,2]
[424764228,1781136639000,-500.0,0.00013698,2]
[424764229,1781136639000,-500.0,0.00013698,2]
[424764231,1781136639000,-2401.2,0.00013698,2]
[424764227,1781136639000,-500.0,0.00013698,2]
[424764234,1781136639000,-2401.2,0.00013698,2]
[424764250,1781136639000,-500.0,0.00013698,2]
[424764235,1781136639000,-2401.2,0.00013698,2]
[424764230,1781136639000,-502.1677605,0.00013698,2]
[424764232,1781136639000,-2401.2,0.00013698,2]
[424764236,1781136639000,-2401.2,0.00013698,2]
[424764233,1781136639000,-2401.2,0.00013698,2]
[424764246,1781136639000,-500.0,0.00013698,2]
[424764238,1781136639000,-500.0,0.00013698,2]
[424764247,1781136639000,-500.0,0.00013698,2]
[424764245,1781136639000,-500.0,0.00013698,2]
[424764242,1781136639000,-500.0,0.00013698,2]
[424764244,1781136639000,-461.11868739,0.00013698,2]
[424764248,1781136639000,-500.0,0.00013698,2]
[424764241,1781136639000,-500.0,0.00013698,2]
[424764239,1781136639000,-500.0,0.00013698,2]
[424764240,1781136639000,-500.0,0.00013698,2]
[424764237,1781136639000,-2401.2,0.00013698,2]
[424764243,1781136639000,-500.82450001,0.00013698,2]
[424764308,1781136640000,-1044.62215625,0.00013699,2]
[424764303,1781136640000,-1044.62215625,0.00013699,2]
[424764306,1781136640000,-1044.62215625,0.00013699,2]
[424764309,1781136640000,-1044.62215625,0.00013699,2]
[424764307,1781136640000,-1044.62215625,0.00013699,2]
[424764310,1781136640000,-1044.62215625,0.00013699,2]
[424764312,1781136640000,-1044.62215625,0.00013699,2]
[424764314,1781136640000,-1044.62215625,0.00013699,2]
[424764313,1781136640000,-1044.62215625,0.00013699,2]
[424764311,1781136640000,-1044.62215625,0.00013699,2]
[424764327,1781136640000,-1044.62215625,0.00013699,2]
[424764319,1781136640000,-1044.62215625,0.00013699,2]
[424764315,1781136640000,-1044.62215625,0.00013699,2]
[424764318,1781136640000,-1044.62215625,0.00013699,2]
[424764317,1781136640000,-1044.62215625,0.00013699,2]
[424764321,1781136640000,-1044.62215625,0.00013699,2]
[424764324,1781136640000,-1044.62215625,0.00013699,2]
[424764320,1781136640000,-1044.62215625,0.00013699,2]
[424764323,1781136640000,-1044.62215625,0.00013699,2]
[424764322,1781136640000,-1044.62215625,0.00013699,2]
[424764328,1781136640000,-1044.62215625,0.00013699,2]
[424764304,1781136640000,-1044.62215625,0.00013699,2]
[424764316,1781136640000,-1044.62215625,0.00013699,2]
[424764302,1781136640000,-1044.62215625,0.00013699,2]
[424764290,1781136640000,-2500.0,0.00013699,2]
[424764301,1781136640000,-409.05917656,0.00013699,2]
[424764325,1781136640000,-1044.62215625,0.00013699,2]
[424764277,1781136640000,-500.0,0.00013698,2]
[424764276,1781136640000,-500.0,0.00013698,2]
[424764279,1781136640000,-500.0,0.00013698,2]
[424764285,1781136640000,-500.0,0.00013698,2]
[424764282,1781136640000,-500.0,0.00013698,2]
[424764280,1781136640000,-500.0,0.00013698,2]
[424764278,1781136640000,-500.0,0.00013698,2]
[424764284,1781136640000,-500.0,0.00013698,2]
[424764287,1781136640000,-500.0,0.00013698,2]
[424764283,1781136640000,-500.0,0.00013698,2]
[424764286,1781136640000,-500.0,0.00013698,2]
[424764289,1781136640000,-500.0,0.00013698,2]
[424764292,1781136640000,-9953.13,0.00013699,2]
[424764296,1781136640000,-9999.99,0.00013699,2]
[424764293,1781136640000,-936.57,0.00013699,2]
[424764298,1781136640000,-150.99,0.00013699,2]
[424764299,1781136640000,-9999.99,0.00013699,2]
[424764291,1781136640000,-200.0,0.00013699,2]
[424764295,1781136640000,-299.99,0.00013699,2]
[424764294,1781136640000,-4943.28,0.00013699,2]
[424764297,1781136640000,-2859.46,0.00013699,2]
[424764300,1781136640000,-24999.99,0.00013699,2]
[424764305,1781136640000,-1044.62215625,0.00013699,2]
[424764329,1781136640000,-1044.62215625,0.00013699,2]
[424764281,1781136640000,-500.0,0.00013698,2]
[424764331,1781136640000,-1044.62215625,0.00013699,2]
[424764359,1781136640000,-3989.56759676,0.00013699,2]
[424764362,1781136640000,-3989.56759676,0.00013699,2]
[424764358,1781136640000,-3989.56759676,0.00013699,2]
[424764360,1781136640000,-3989.56759676,0.00013699,2]
[424764365,1781136640000,-3989.56759676,0.00013699,2]
[424764364,1781136640000,-3989.56759676,0.00013699,2]
[424764366,1781136640000,-3989.56759676,0.00013699,2]
[424764367,1781136640000,-3989.56759676,0.00013699,2]
[424764363,1781136640000,-3989.56759676,0.00013699,2]
[424764368,1781136640000,-3989.56759676,0.00013699,2]
[424764370,1781136640000,-3989.56759676,0.00013699,2]
[424764372,1781136640000,-3989.56759676,0.00013699,2]
[424764371,1781136640000,-3989.56759676,0.00013699,2]
[424764373,1781136640000,-3989.56759676,0.00013699,2]
[424764374,1781136640000,-3989.56759676,0.00013699,2]
[424764377,1781136640000,-3989.56759676,0.00013699,2]
[424764376,1781136640000,-3989.56759676,0.00013699,2]
[424764380,1781136640000,-3989.56759676,0.00013699,2]
[424764381,1781136640000,-3989.56759675,0.00013699,2]